[Event "*** Titled Tuesday Blitz"]
[Site "Chess.com"]
[Date "2020.01.07"]
[Round "6"]
[White "LimeInTheCoconut"]
[Black "Alex_Molchanov"]
[Result "1-0"]
[WhiteElo "2462"]
[BlackElo "2568"]
[TimeControl "180+2"]
[EndTime "14:23:54 PST"]
[Termination "LimeInTheCoconut won by checkmate"]

1. e4 {[%clk 0:03:01.9]} 1... c6 {[%clk 0:02:59.8]} 2. d4 {[%clk 0:03:00.9]}
2... d5 {[%clk 0:03:01.3]} 3. exd5 {[%clk 0:03:02.8]} 3... cxd5 {[%clk
0:03:02.7]} 4. Bd3 {[%clk 0:03:04.5]} 4... Nc6 {[%clk 0:03:03.8]} 5. c3 {[%clk
0:03:05.5]} 5... Qc7 {[%clk 0:03:03]} 6. h3 {[%clk 0:03:04.4]} 6... e5 {[%clk
0:02:53.6]} 7. dxe5 {[%clk 0:03:05]} 7... Nxe5 {[%clk 0:02:54.5]} 8. Nf3 {[%clk
0:03:06.1]} 8... Nxd3+ {[%clk 0:02:50.6]} 9. Qxd3 {[%clk 0:03:08]} 9... Be6
{[%clk 0:02:28.9]} 10. O-O {[%clk 0:03:07]} 10... Nf6 {[%clk 0:02:28]} 11. Nbd2
{[%clk 0:03:01.1]} 11... Bc5 {[%clk 0:02:21.8]} 12. Nb3 {[%clk 0:02:58.3]} 12...
Bb6 {[%clk 0:02:22.5]} 13. Be3 {[%clk 0:02:57.7]} 13... O-O {[%clk 0:02:19.3]}
14. Bxb6 {[%clk 0:02:57]} 14... Qxb6 {[%clk 0:02:20.1]} 15. Nfd4 {[%clk
0:02:54.9]} 15... Ne4 {[%clk 0:02:18.7]} 16. Rfe1 {[%clk 0:02:41.7]} 16... Rae8
{[%clk 0:02:17.8]} 17. f3 {[%clk 0:02:35]} 17... Nd6 {[%clk 0:02:16.4]} 18. Qd2
{[%clk 0:02:31]} 18... Nc4 {[%clk 0:02:12.8]} 19. Qf2 {[%clk 0:02:32.4]} 19...
Bc8 {[%clk 0:02:10.2]} 20. Re2 {[%clk 0:02:07.1]} 20... h6 {[%clk 0:01:58.7]}
21. Rae1 {[%clk 0:02:06.4]} 21... Rxe2 {[%clk 0:01:59.5]} 22. Rxe2 {[%clk
0:02:04.1]} 22... Qg6 {[%clk 0:01:58.5]} 23. Kh2 {[%clk 0:01:59.7]} 23... Qa6
{[%clk 0:01:52.1]} 24. Nc1 {[%clk 0:01:51.6]} 24... Qb6 {[%clk 0:01:29.5]} 25.
Nd3 {[%clk 0:01:45.7]} 25... Qf6 {[%clk 0:01:07.9]} 26. Qg3 {[%clk 0:01:40.8]}
26... Qa6 {[%clk 0:00:40.2]} 27. a3 {[%clk 0:01:37.2]} 27... Nxa3 {[%clk
0:00:19.1]} 28. Nb4 {[%clk 0:01:29.8]} 28... Qc4 {[%clk 0:00:16.4]} 29. bxa3
{[%clk 0:01:26]} 29... Qxc3 {[%clk 0:00:17.2]} 30. Nbc2 {[%clk 0:01:20.4]} 30...
b5 {[%clk 0:00:14.5]} 31. f4 {[%clk 0:01:20.4]} 31... Qc5 {[%clk 0:00:12]} 32.
f5 {[%clk 0:01:16.6]} 32... a5 {[%clk 0:00:11.5]} 33. f6 {[%clk 0:01:17.2]}
33... g6 {[%clk 0:00:13]} 34. Qe5 {[%clk 0:01:09.6]} 34... b4 {[%clk 0:00:09.7]}
35. axb4 {[%clk 0:01:10.2]} 35... axb4 {[%clk 0:00:11.6]} 36. Nb3 {[%clk
0:01:04.4]} 36... Qc4 {[%clk 0:00:10.1]} 37. Ncd4 {[%clk 0:01:05.5]} 37... Ba6
{[%clk 0:00:08.8]} 38. Qe7 {[%clk 0:01:00.1]} 38... Qc3 {[%clk 0:00:07.8]} 39.
Rc2 {[%clk 0:00:59.7]} 39... Qd3 {[%clk 0:00:08.1]} 40. Rc6 {[%clk 0:00:45.9]}
40... h5 {[%clk 0:00:06.8]} 41. Rb6 {[%clk 0:00:43.8]} 41... h4 {[%clk 0:00:08]}
42. Qxf8+ {[%clk 0:00:43.2]} 42... Kxf8 {[%clk 0:00:09]} 43. Rb8+ {[%clk
0:00:44.1]} 43... Bc8 {[%clk 0:00:10.9]} 44. Rxc8# {[%clk 0:00:45.7]} 1-0

[Event "*** Titled Tuesday Blitz"]
[Site "Chess.com"]
[Date "2020.01.07"]
[Round "6"]
[White "Hikaru"]
[Black "maciek_92"]
[Result "1-0"]
[WhiteElo "3126"]
[BlackElo "2814"]
[TimeControl "180+2"]
[EndTime "14:23:56 PST"]
[Termination "Hikaru won on time"]

1. e4 {[%clk 0:03:01.9]} 1... c5 {[%clk 0:03:00.7]} 2. Nf3 {[%clk 0:03:02.6]}
2... d6 {[%clk 0:03:01.4]} 3. Nc3 {[%clk 0:03:03.3]} 3... Nc6 {[%clk 0:03:01.1]}
4. Bb5 {[%clk 0:03:00.6]} 4... Bd7 {[%clk 0:03:00.6]} 5. Bxc6 {[%clk 0:03:01.1]}
5... Bxc6 {[%clk 0:03:02.5]} 6. d4 {[%clk 0:03:02.8]} 6... cxd4 {[%clk
0:03:03.5]} 7. Qxd4 {[%clk 0:03:04.6]} 7... Nf6 {[%clk 0:03:03.9]} 8. Bg5 {[%clk
0:03:05.3]} 8... e6 {[%clk 0:03:04.1]} 9. O-O-O {[%clk 0:03:05.7]} 9... Be7
{[%clk 0:03:04.5]} 10. Qd3 {[%clk 0:03:07]} 10... Qa5 {[%clk 0:03:04.6]} 11. h4
{[%clk 0:03:06.8]} 11... h6 {[%clk 0:03:00.8]} 12. Bxf6 {[%clk 0:02:57.6]} 12...
Bxf6 {[%clk 0:02:58.1]} 13. Nd4 {[%clk 0:02:59.5]} 13... Rc8 {[%clk 0:02:54.1]}
14. f4 {[%clk 0:02:56.6]} 14... h5 {[%clk 0:02:25.6]} 15. g3 {[%clk 0:02:50.2]}
15... O-O {[%clk 0:02:20.5]} 16. Rhe1 {[%clk 0:02:50.9]} 16... Rfd8 {[%clk
0:02:18.8]} 17. Kb1 {[%clk 0:02:52]} 17... Be8 {[%clk 0:02:16.4]} 18. Qf3 {[%clk
0:02:42.4]} 18... b5 {[%clk 0:01:56.6]} 19. e5 {[%clk 0:02:36.8]} 19... dxe5
{[%clk 0:01:50.6]} 20. fxe5 {[%clk 0:02:38.7]} 20... Be7 {[%clk 0:01:51.6]} 21.
g4 {[%clk 0:02:23.2]} 21... Rc4 {[%clk 0:01:16.7]} 22. Nb3 {[%clk 0:01:59.2]}
22... Qc7 {[%clk 0:01:16]} 23. Rxd8 {[%clk 0:01:50.9]} 23... Qxd8 {[%clk
0:01:17.1]} 24. gxh5 {[%clk 0:01:51.9]} 24... Rxh4 {[%clk 0:01:14.4]} 25. Rg1
{[%clk 0:01:44]} 25... Bg5 {[%clk 0:00:55.9]} 26. Rd1 {[%clk 0:01:08.3]} 26...
Qc7 {[%clk 0:00:54.3]} 27. Qg3 {[%clk 0:00:57.5]} 27... Rxh5 {[%clk 0:00:43.5]}
28. Ne4 {[%clk 0:00:56]} 28... Bh4 {[%clk 0:00:41]} 29. Qf3 {[%clk 0:00:48.3]}
29... Rxe5 {[%clk 0:00:29.8]} 30. Qf4 {[%clk 0:00:30.2]} 30... Bc6 {[%clk
0:00:23.1]} 31. Qxh4 {[%clk 0:00:25.4]} 31... Bd5 {[%clk 0:00:06.2]} 32. Nc3
{[%clk 0:00:20.9]} 32... g5 {[%clk 0:00:05]} 33. Qh6 {[%clk 0:00:21]} 33... Bxb3
{[%clk 0:00:04.4]} 34. axb3 {[%clk 0:00:18]} 34... Rf5 {[%clk 0:00:02.8]} 35.
Ne4 {[%clk 0:00:17]} 1-0

[Event "*** Titled Tuesday Blitz"]
[Site "Chess.com"]
[Date "2020.01.07"]
[Round "6"]
[White "Chesscoach_Golichenko"]
[Black "AlexTriapishko"]
[Result "0-1"]
[WhiteElo "2548"]
[BlackElo "2837"]
[TimeControl "180+2"]
[EndTime "14:23:56 PST"]
[Termination "AlexTriapishko won by resignation"]

1. d4 {[%clk 0:03:01.9]} 1... Nf6 {[%clk 0:02:56.1]} 2. c4 {[%clk 0:02:58.6]}
2... g6 {[%clk 0:02:49.2]} 3. Nc3 {[%clk 0:02:51.9]} 3... d5 {[%clk 0:02:50.3]}
4. cxd5 {[%clk 0:02:52.5]} 4... Nxd5 {[%clk 0:02:52.2]} 5. e4 {[%clk 0:02:54.2]}
5... Nxc3 {[%clk 0:02:53.4]} 6. bxc3 {[%clk 0:02:56.1]} 6... Bg7 {[%clk
0:02:55]} 7. Bc4 {[%clk 0:02:57.8]} 7... c5 {[%clk 0:02:56.1]} 8. Ne2 {[%clk
0:02:58]} 8... Nc6 {[%clk 0:02:57.4]} 9. Be3 {[%clk 0:02:57.9]} 9... O-O {[%clk
0:02:57.5]} 10. O-O {[%clk 0:02:53.4]} 10... b6 {[%clk 0:02:53.9]} 11. Qd2
{[%clk 0:02:48.8]} 11... Na5 {[%clk 0:02:47.2]} 12. Bd3 {[%clk 0:02:48.4]} 12...
e5 {[%clk 0:02:48.7]} 13. Bh6 {[%clk 0:02:46]} 13... exd4 {[%clk 0:02:45.5]} 14.
Bxg7 {[%clk 0:02:41.1]} 14... Kxg7 {[%clk 0:02:45.7]} 15. cxd4 {[%clk
0:02:42.6]} 15... cxd4 {[%clk 0:02:47.6]} 16. f4 {[%clk 0:02:38]} 16... f6
{[%clk 0:02:30.2]} 17. f5 {[%clk 0:02:36.8]} 17... Nc6 {[%clk 0:02:26]} 18. Nf4
{[%clk 0:02:31.4]} 18... Ne5 {[%clk 0:02:22.3]} 19. fxg6 {[%clk 0:02:24.6]}
19... hxg6 {[%clk 0:02:21.3]} 20. h3 {[%clk 0:02:25]} 20... Qd6 {[%clk
0:02:10.6]} 21. Rf2 {[%clk 0:02:23.6]} 21... Bb7 {[%clk 0:01:45.2]} 22. Raf1
{[%clk 0:02:23.4]} 22... Rac8 {[%clk 0:01:46.4]} 23. h4 {[%clk 0:01:50.8]} 23...
Rc3 {[%clk 0:01:35.7]} 24. Be2 {[%clk 0:01:25.8]} 24... Bxe4 {[%clk 0:00:55.9]}
25. h5 {[%clk 0:01:15.7]} 25... g5 {[%clk 0:00:15.9]} 26. Nh3 {[%clk 0:00:59.4]}
26... Rxh3 {[%clk 0:00:11.3]} 27. gxh3 {[%clk 0:00:59.3]} 27... d3 {[%clk
0:00:12.6]} 28. Bd1 {[%clk 0:00:54.6]} 28... Nc4 {[%clk 0:00:12]} 29. h6+ {[%clk
0:00:43.6]} 29... Kxh6 {[%clk 0:00:09.7]} 30. Rxf6+ {[%clk 0:00:12]} 30... Rxf6
{[%clk 0:00:09.9]} 31. Rxf6+ {[%clk 0:00:12.7]} 31... Qxf6 {[%clk 0:00:11.4]}
32. Qe1 {[%clk 0:00:14.1]} 32... Qd4+ {[%clk 0:00:09.4]} 33. Kh2 {[%clk
0:00:14.5]} 33... Qe5+ {[%clk 0:00:09.9]} 34. Kg1 {[%clk 0:00:15.2]} 34... d2
{[%clk 0:00:10.6]} 35. Qe2 {[%clk 0:00:12.9]} 35... Qg3+ {[%clk 0:00:11]} 36.
Kf1 {[%clk 0:00:13.3]} 36... Ne3+ {[%clk 0:00:12.3]} 0-1

[Event "*** Titled Tuesday Blitz"]
[Site "Chess.com"]
[Date "2020.01.07"]
[Round "6"]
[White "xamax2000"]
[Black "Alexander_Moskalenko"]
[Result "0-1"]
[WhiteElo "2648"]
[BlackElo "2817"]
[TimeControl "180+2"]
[EndTime "14:23:57 PST"]
[Termination "Alexander_Moskalenko won by resignation"]

1. e4 {[%clk 0:03:01.8]} 1... e5 {[%clk 0:03:01]} 2. Nf3 {[%clk 0:03:02.7]} 2...
Nc6 {[%clk 0:03:02.5]} 3. Bb5 {[%clk 0:03:03.9]} 3... Nf6 {[%clk 0:03:03.7]} 4.
d3 {[%clk 0:03:04.8]} 4... Bc5 {[%clk 0:03:03.8]} 5. Bxc6 {[%clk 0:03:06.3]}
5... dxc6 {[%clk 0:03:04.6]} 6. O-O {[%clk 0:03:08.2]} 6... Nd7 {[%clk
0:03:04.4]} 7. c3 {[%clk 0:03:09.1]} 7... O-O {[%clk 0:03:02.7]} 8. d4 {[%clk
0:03:10.6]} 8... Bd6 {[%clk 0:03:04.2]} 9. Bg5 {[%clk 0:03:12]} 9... Qe8 {[%clk
0:03:04.3]} 10. Nbd2 {[%clk 0:03:06.8]} 10... f6 {[%clk 0:02:49.6]} 11. Bh4
{[%clk 0:03:08.2]} 11... b6 {[%clk 0:02:49.9]} 12. Re1 {[%clk 0:03:05.8]} 12...
a5 {[%clk 0:02:47.5]} 13. Nc4 {[%clk 0:03:02]} 13... Qf7 {[%clk 0:02:44.9]} 14.
Nxd6 {[%clk 0:03:01]} 14... cxd6 {[%clk 0:02:46.8]} 15. dxe5 {[%clk 0:03:02.5]}
15... dxe5 {[%clk 0:02:47.2]} 16. Qd6 {[%clk 0:03:02.9]} 16... Bb7 {[%clk
0:02:38.9]} 17. Rad1 {[%clk 0:03:03.4]} 17... Nc5 {[%clk 0:02:37.9]} 18. b3
{[%clk 0:03:01.2]} 18... Ne6 {[%clk 0:02:37.8]} 19. Qd3 {[%clk 0:02:36.1]} 19...
Rfd8 {[%clk 0:02:31.2]} 20. Qc2 {[%clk 0:02:36.6]} 20... c5 {[%clk 0:02:23.4]}
21. Rxd8+ {[%clk 0:02:36.5]} 21... Rxd8 {[%clk 0:02:23.9]} 22. Nxe5 {[%clk
0:02:13.5]} 22... fxe5 {[%clk 0:02:25.8]} 23. Bxd8 {[%clk 0:02:15.4]} 23... Nxd8
{[%clk 0:02:27.4]} 24. Qd3 {[%clk 0:02:14.5]} 24... Qe7 {[%clk 0:02:20.8]} 25.
Rd1 {[%clk 0:02:12.9]} 25... Nf7 {[%clk 0:02:21]} 26. f3 {[%clk 0:02:09.6]}
26... Bc6 {[%clk 0:02:21.5]} 27. Qa6 {[%clk 0:02:05.7]} 27... Qc7 {[%clk
0:02:21.7]} 28. Qc4 {[%clk 0:02:06.5]} 28... Kf8 {[%clk 0:02:04.9]} 29. Qe6
{[%clk 0:02:04.6]} 29... Be8 {[%clk 0:02:06.5]} 30. Qf5 {[%clk 0:01:40.3]} 30...
g6 {[%clk 0:02:03.5]} 31. Qh3 {[%clk 0:01:35.4]} 31... h5 {[%clk 0:02:04.1]} 32.
Qe6 {[%clk 0:01:35]} 32... Qc6 {[%clk 0:02:05.2]} 33. Qc4 {[%clk 0:01:30]} 33...
Ke7 {[%clk 0:02:01.2]} 34. Qd3 {[%clk 0:01:29.2]} 34... Nd6 {[%clk 0:01:57.9]}
35. Qd2 {[%clk 0:01:28.1]} 35... Nf7 {[%clk 0:01:58.1]} 36. Qd3 {[%clk
0:01:21.1]} 36... Bd7 {[%clk 0:01:59.2]} 37. Qa6 {[%clk 0:01:20.5]} 37... Be6
{[%clk 0:02:00.1]} 38. Qa7+ {[%clk 0:01:20.9]} 38... Kf6 {[%clk 0:01:59.8]} 39.
Qb8 {[%clk 0:01:21.7]} 39... c4 {[%clk 0:01:58.4]} 40. bxc4 {[%clk 0:01:21.5]}
40... Bxc4 {[%clk 0:01:58.9]} 41. Kh1 {[%clk 0:01:16.8]} 41... Bxa2 {[%clk
0:01:59.1]} 42. Qf8 {[%clk 0:01:17]} 42... Bb3 {[%clk 0:01:52.4]} 43. Rf1 {[%clk
0:01:14.5]} 43... Bc4 {[%clk 0:01:52.3]} 44. Re1 {[%clk 0:01:07.8]} 44... Qd6
{[%clk 0:01:50.4]} 45. Qc8 {[%clk 0:01:08.3]} 45... b5 {[%clk 0:01:49.7]} 46. f4
{[%clk 0:01:08.1]} 46... a4 {[%clk 0:01:36.3]} 47. fxe5+ {[%clk 0:01:06.7]}
47... Qxe5 {[%clk 0:01:38.2]} 48. Qf8 {[%clk 0:01:04.8]} 48... Qxc3 {[%clk
0:00:56.1]} 49. e5+ {[%clk 0:01:02.4]} 49... Kg5 {[%clk 0:00:57.7]} 50. Qe7+
{[%clk 0:01:01.3]} 50... Kh6 {[%clk 0:00:59.1]} 51. Qf8+ {[%clk 0:01:01.8]}
51... Kh7 {[%clk 0:01:00.5]} 52. Rf1 {[%clk 0:01:02.6]} 52... Qxe5 {[%clk
0:00:59.1]} 0-1

[Event "*** Titled Tuesday Blitz"]
[Site "Chess.com"]
[Date "2020.01.07"]
[Round "6"]
[White "luis-garcia"]
[Black "shanemelaughcm"]
[Result "0-1"]
[WhiteElo "2141"]
[BlackElo "2284"]
[TimeControl "180+2"]
[EndTime "14:23:59 PST"]
[Termination "shanemelaughcm won by resignation"]

1. d4 {[%clk 0:03:01.9]} 1... e6 {[%clk 0:03:00.2]} 2. c4 {[%clk 0:03:02.6]}
2... f5 {[%clk 0:03:00.9]} 3. e4 {[%clk 0:03:02.6]} 3... fxe4 {[%clk 0:03:00.5]}
4. Nc3 {[%clk 0:03:01.6]} 4... Nf6 {[%clk 0:03:00.3]} 5. Bg5 {[%clk 0:02:56.7]}
5... Bb4 {[%clk 0:03:01]} 6. Qc2 {[%clk 0:02:45]} 6... O-O {[%clk 0:02:59.1]} 7.
f3 {[%clk 0:01:34.3]} 7... Nc6 {[%clk 0:02:04.5]} 8. O-O-O {[%clk 0:01:31.1]}
8... Bxc3 {[%clk 0:01:54.9]} 9. Qxc3 {[%clk 0:01:29.7]} 9... d5 {[%clk
0:01:55.3]} 10. fxe4 {[%clk 0:01:15.6]} 10... Nxe4 {[%clk 0:01:49.8]} 11. Bxd8
{[%clk 0:01:16]} 11... Nxc3 {[%clk 0:01:50.9]} 12. bxc3 {[%clk 0:01:15.2]} 12...
Rxd8 {[%clk 0:01:50.2]} 13. cxd5 {[%clk 0:01:16.2]} 13... exd5 {[%clk
0:01:50.4]} 14. Nf3 {[%clk 0:01:12.1]} 14... Bg4 {[%clk 0:01:51.2]} 15. h3
{[%clk 0:01:07.9]} 15... Bxf3 {[%clk 0:01:48.5]} 16. gxf3 {[%clk 0:01:09.8]}
16... Rf8 {[%clk 0:01:48.9]} 17. Bg2 {[%clk 0:01:02.2]} 17... Rae8 {[%clk
0:01:48.7]} 18. f4 {[%clk 0:00:59.9]} 18... Ne7 {[%clk 0:01:45.5]} 19. Rhf1
{[%clk 0:00:36.1]} 19... c6 {[%clk 0:01:45.9]} 20. Rd2 {[%clk 0:00:33]} 20...
Nf5 {[%clk 0:01:46.4]} 21. Rdf2 {[%clk 0:00:29.2]} 21... Ne3 {[%clk 0:01:47.2]}
22. Rg1 {[%clk 0:00:21.2]} 22... Nxg2 {[%clk 0:01:44.5]} 23. Rgxg2 {[%clk
0:00:23.1]} 23... Re3 {[%clk 0:01:45.4]} 24. Kd2 {[%clk 0:00:15.6]} 24... Rfe8
{[%clk 0:01:26.9]} 25. f5 {[%clk 0:00:15.6]} 25... Kf7 {[%clk 0:01:23.2]} 26. h4
{[%clk 0:00:16.4]} 26... Rh3 {[%clk 0:01:22.8]} 27. Rg4 {[%clk 0:00:16.7]} 27...
Ree3 {[%clk 0:01:23.2]} 28. f6 {[%clk 0:00:15.2]} 28... Rd3+ {[%clk 0:01:21.3]}
29. Ke2 {[%clk 0:00:16.3]} 29... Rhe3+ {[%clk 0:01:21.9]} 30. Kf1 {[%clk
0:00:17.6]} 30... gxf6 {[%clk 0:01:23.2]} 31. Rgf4 {[%clk 0:00:17.9]} 31... Re6
{[%clk 0:01:16.2]} 32. R4f3 {[%clk 0:00:17.8]} 32... Rxf3 {[%clk 0:01:16.7]} 33.
Rxf3 {[%clk 0:00:19.7]} 33... Re4 {[%clk 0:01:17.8]} 34. Rh3 {[%clk 0:00:19.6]}
34... Ke6 {[%clk 0:01:14.7]} 35. Kf2 {[%clk 0:00:20.4]} 35... Kf5 {[%clk
0:01:14.5]} 36. h5 {[%clk 0:00:21.6]} 36... Rf4+ {[%clk 0:01:13.7]} 37. Ke2
{[%clk 0:00:22.6]} 37... Rg4 {[%clk 0:01:10.1]} 38. h6 {[%clk 0:00:23.6]} 38...
Kg5 {[%clk 0:01:09.5]} 39. Rf3 {[%clk 0:00:24.7]} 39... f5 {[%clk 0:01:09.4]}
40. Ke3 {[%clk 0:00:24.9]} 40... Re4+ {[%clk 0:01:10.1]} 41. Kd3 {[%clk
0:00:25.7]} 41... f4 {[%clk 0:01:10.7]} 42. Rh3 {[%clk 0:00:26.4]} 42... Re3+
{[%clk 0:01:10.4]} 43. Rxe3 {[%clk 0:00:27.4]} 43... fxe3 {[%clk 0:01:12.3]} 44.
Kxe3 {[%clk 0:00:29.3]} 44... Kxh6 {[%clk 0:01:14.1]} 45. Kf4 {[%clk 0:00:30.9]}
45... Kg6 {[%clk 0:01:14.8]} 46. Ke5 {[%clk 0:00:29.9]} 46... h5 {[%clk
0:01:16]} 47. Kf4 {[%clk 0:00:30.9]} 47... b6 {[%clk 0:01:15.5]} 48. Kg3 {[%clk
0:00:30.8]} 48... Kg5 {[%clk 0:01:16.7]} 49. Kf3 {[%clk 0:00:31.9]} 49... Kf5
{[%clk 0:01:17.8]} 50. a4 {[%clk 0:00:33.1]} 50... a5 {[%clk 0:01:18.9]} 51. Ke3
{[%clk 0:00:33.6]} 51... Kg4 {[%clk 0:01:18.5]} 52. Ke2 {[%clk 0:00:34]} 52...
h4 {[%clk 0:01:19.4]} 53. Kf2 {[%clk 0:00:35.2]} 53... h3 {[%clk 0:01:20.4]} 54.
Kg1 {[%clk 0:00:35.5]} 54... Kf3 {[%clk 0:01:22.1]} 55. Kh2 {[%clk 0:00:36.9]}
55... Ke3 {[%clk 0:01:23.8]} 56. Kxh3 {[%clk 0:00:38.8]} 56... Kd3 {[%clk
0:01:25.6]} 57. c4 {[%clk 0:00:40.7]} 57... Kxc4 {[%clk 0:01:26.5]} 0-1

[Event "*** Titled Tuesday Blitz"]
[Site "Chess.com"]
[Date "2020.01.07"]
[Round "6"]
[White "nubair1198"]
[Black "Rud_Makarian"]
[Result "1/2-1/2"]
[WhiteElo "2910"]
[BlackElo "2671"]
[TimeControl "180+2"]
[EndTime "14:24:00 PST"]
[Termination "Game drawn by repetition"]

1. d4 {[%clk 0:03:01.9]} 1... Nf6 {[%clk 0:03:01.2]} 2. c4 {[%clk 0:03:03.3]}
2... g6 {[%clk 0:03:02.6]} 3. Nc3 {[%clk 0:03:04.7]} 3... Bg7 {[%clk 0:03:03.9]}
4. e4 {[%clk 0:03:06.2]} 4... O-O {[%clk 0:03:05]} 5. Nf3 {[%clk 0:03:07.8]}
5... d6 {[%clk 0:03:05.5]} 6. Be2 {[%clk 0:03:09.3]} 6... e5 {[%clk 0:03:06.1]}
7. O-O {[%clk 0:03:10.7]} 7... Nc6 {[%clk 0:03:06.6]} 8. d5 {[%clk 0:03:11.9]}
8... Ne7 {[%clk 0:03:07.8]} 9. b4 {[%clk 0:03:13.8]} 9... a5 {[%clk 0:03:07.5]}
10. bxa5 {[%clk 0:03:15.7]} 10... Ne8 {[%clk 0:03:07.6]} 11. a4 {[%clk
0:03:14.6]} 11... c5 {[%clk 0:03:08.1]} 12. Ra3 {[%clk 0:03:13.3]} 12... h6
{[%clk 0:03:06.6]} 13. Nb5 {[%clk 0:02:50.4]} 13... f5 {[%clk 0:03:01.1]} 14.
Nh4 {[%clk 0:02:41.9]} 14... Nf6 {[%clk 0:02:50.2]} 15. exf5 {[%clk 0:02:41.1]}
15... gxf5 {[%clk 0:02:49.5]} 16. f4 {[%clk 0:02:41.2]} 16... e4 {[%clk
0:02:41.9]} 17. Bb2 {[%clk 0:02:41.5]} 17... Kh7 {[%clk 0:02:38.4]} 18. Kh1
{[%clk 0:02:41]} 18... Rxa5 {[%clk 0:02:27.3]} 19. h3 {[%clk 0:02:18.4]} 19...
Ne8 {[%clk 0:01:19.4]} 20. Bxg7 {[%clk 0:02:12.3]} 20... Nxg7 {[%clk 0:01:21.3]}
21. Qe1 {[%clk 0:02:04.6]} 21... Ra6 {[%clk 0:01:14.5]} 22. g4 {[%clk
0:02:04.1]} 22... Bd7 {[%clk 0:00:57.9]} 23. Rg1 {[%clk 0:01:53]} 23... Bxb5
{[%clk 0:00:56]} 24. cxb5 {[%clk 0:01:53]} 24... Ra8 {[%clk 0:00:53.9]} 25. gxf5
{[%clk 0:01:49.5]} 25... Nexf5 {[%clk 0:00:50.1]} 26. Ng6 {[%clk 0:01:41.6]}
26... Rf6 {[%clk 0:00:46.5]} 27. Nh4 {[%clk 0:01:21.3]} 27... Rf8 {[%clk
0:00:35]} 28. Nxf5 {[%clk 0:01:19.1]} 28... Nxf5 {[%clk 0:00:35.9]} 29. Bh5
{[%clk 0:01:19.1]} 29... Rg8 {[%clk 0:00:36.3]} 30. Qxe4 {[%clk 0:01:04.2]}
30... Qf6 {[%clk 0:00:27.5]} 31. Rxg8 {[%clk 0:00:44.3]} 31... Rxg8 {[%clk
0:00:27.2]} 32. Bg4 {[%clk 0:00:46]} 32... Rxg4 {[%clk 0:00:21.4]} 33. hxg4
{[%clk 0:00:39.9]} 33... Qh4+ {[%clk 0:00:22.8]} 34. Kg2 {[%clk 0:00:40.6]}
34... Qxg4+ {[%clk 0:00:24.3]} 35. Kf1 {[%clk 0:00:38.9]} 35... Qd1+ {[%clk
0:00:20.4]} 36. Kf2 {[%clk 0:00:30.3]} 36... Qd2+ {[%clk 0:00:21.5]} 37. Kg1
{[%clk 0:00:29.4]} 37... Qc1+ {[%clk 0:00:21.5]} 38. Kg2 {[%clk 0:00:30.9]}
38... Qb2+ {[%clk 0:00:21.6]} 39. Kg1 {[%clk 0:00:26.7]} 39... Qc1+ {[%clk
0:00:22.6]} 40. Kf2 {[%clk 0:00:27.8]} 40... Qb2+ {[%clk 0:00:23.4]} 41. Kg1
{[%clk 0:00:20.4]} 41... Qc1+ {[%clk 0:00:24.1]} 1/2-1/2

[Event "*** Titled Tuesday Blitz"]
[Site "Chess.com"]
[Date "2020.01.07"]
[Round "6"]
[White "VeraNebolsina"]
[Black "PNEPaul"]
[Result "1-0"]
[WhiteElo "2356"]
[BlackElo "1827"]
[TimeControl "180+2"]
[EndTime "14:24:02 PST"]
[Termination "VeraNebolsina won on time"]

1. e4 {[%clk 0:03:01.9]} 1... e5 {[%clk 0:03:00.1]} 2. Nf3 {[%clk 0:03:02.3]}
2... Nc6 {[%clk 0:03:01]} 3. Bb5 {[%clk 0:03:02.8]} 3... f5 {[%clk 0:02:59.4]}
4. Nc3 {[%clk 0:03:01.7]} 4... Nf6 {[%clk 0:03:00.2]} 5. d3 {[%clk 0:02:58.4]}
5... Be7 {[%clk 0:03:00.7]} 6. O-O {[%clk 0:02:56]} 6... d6 {[%clk 0:03:01.7]}
7. a3 {[%clk 0:02:30.2]} 7... O-O {[%clk 0:03:01.1]} 8. Bc4+ {[%clk 0:02:30.7]}
8... Kh8 {[%clk 0:03:01.2]} 9. Ng5 {[%clk 0:02:31.8]} 9... Qe8 {[%clk
0:02:30.5]} 10. f4 {[%clk 0:02:20.6]} 10... h6 {[%clk 0:02:16]} 11. Ne6 {[%clk
0:02:12.9]} 11... Bxe6 {[%clk 0:02:15.7]} 12. Bxe6 {[%clk 0:02:14.8]} 12... fxe4
{[%clk 0:02:09]} 13. dxe4 {[%clk 0:02:14.7]} 13... exf4 {[%clk 0:02:04.7]} 14.
Bxf4 {[%clk 0:02:12.3]} 14... Ne5 {[%clk 0:02:02.7]} 15. Qd2 {[%clk 0:02:06.7]}
15... Bd8 {[%clk 0:01:52]} 16. Bb3 {[%clk 0:02:01.6]} 16... Ng6 {[%clk
0:01:48.7]} 17. Bxh6 {[%clk 0:01:51.2]} 17... Nxe4 {[%clk 0:01:28.3]} 18. Nxe4
{[%clk 0:01:34.8]} 18... Qxe4 {[%clk 0:01:23.1]} 19. Rxf8+ {[%clk 0:01:13.1]}
19... Nxf8 {[%clk 0:01:16.8]} 20. Rf1 {[%clk 0:01:14.5]} 20... Ng6 {[%clk
0:01:11.3]} 21. Qc3 {[%clk 0:00:49.6]} 21... Qe5 {[%clk 0:01:00.1]} 22. Qh3
{[%clk 0:00:41.1]} 22... Qd4+ {[%clk 0:00:37]} 23. Be3+ {[%clk 0:00:41.2]} 23...
Qh4 {[%clk 0:00:34.6]} 24. Qd7 {[%clk 0:00:38.1]} 24... Bg5 {[%clk 0:00:27.9]}
25. Bf2 {[%clk 0:00:35.5]} 25... Qf4 {[%clk 0:00:17]} 26. Qxc7 {[%clk
0:00:28.3]} 26... Rf8 {[%clk 0:00:12.3]} 27. Qxb7 {[%clk 0:00:29.1]} 27... Nh4
{[%clk 0:00:12.4]} 28. Qb5 {[%clk 0:00:14.9]} 28... Rf5 {[%clk 0:00:09.9]} 29.
Qb8+ {[%clk 0:00:14.5]} 29... Kh7 {[%clk 0:00:06.2]} 30. Qg8+ {[%clk 0:00:14.5]}
30... Kg6 {[%clk 0:00:06.7]} 31. Qe6+ {[%clk 0:00:14]} 31... Rf6 {[%clk
0:00:06.4]} 32. Qe8+ {[%clk 0:00:15.1]} 32... Kh7 {[%clk 0:00:05.6]} 33. Qh5+
{[%clk 0:00:15.4]} 33... Bh6 {[%clk 0:00:05.6]} 34. Qe2 {[%clk 0:00:15.9]} 34...
Nf5 {[%clk 0:00:04.9]} 35. Qd3 {[%clk 0:00:15.6]} 1-0